fUST/lending_fUST_20240307
["ID","MTS","AMOUNT","RATE_DAILY","PERIOD"]
[317471612,1709818239328,-239.42363109,0.00022998,2]
[317471614,1709818239337,-17733.51116419,0.00022998,2]
[317471616,1709818239347,-205.71525107,0.00022998,2]
[317471618,1709818239356,-155.42225802,0.00022998,2]
[317471620,1709818239365,-155.38796102,0.00022998,2]
[317471622,1709818239374,-155.62830245,0.00022998,2]
[317471623,1709818239383,-176.31522788,0.00022998,2]
[317471625,1709818239392,-596.10414782,0.00022998,2]
[317471627,1709818239400,-1473.13504884,0.00022998,2]
[317471629,1709818239409,-3916.67815762,0.00022998,2]
[317471631,1709818239419,-1448.566988,0.00022998,2]
[317471633,1709818239429,-181.87879795,0.00022998,2]
[317471636,1709818239438,-191.51699087,0.00022998,2]
[317471638,1709818239447,-214.07439581,0.00022998,2]
[317471640,1709818239456,-402.61598968,0.00022998,2]
[317471642,1709818239465,-2113.72300496,0.00022998,2]
[317471644,1709818239475,-433.12075984,0.00022998,2]
[317471646,1709818239484,-534.87055888,0.00022998,2]
[317471648,1709818239496,-171.32738301,0.00022998,2]
[317471650,1709818239507,-538.71064238,0.00022998,2]
[317471652,1709818239517,-155.20173439,0.00022998,2]
[317471654,1709818239526,-682.38639821,0.00022998,2]
[317471656,1709818239535,-290.27431423,0.00022998,2]
[317471658,1709818239544,-155.3144114,0.00022998,2]
[317471660,1709818239554,-220.30216238,0.00022998,2]
[317471662,1709818239565,-155.19123374,0.00022998,2]
[317471664,1709818239576,-155.16548735,0.00022998,2]
[317471666,1709818239586,-263.5709269,0.00022998,7]
[317471668,1709818239596,-279.78176882,0.00022998,2]
[317471670,1709818239605,-496.31902454,0.00022998,2]
[317471672,1709818239615,-165.01571308,0.00022999,2]
[317471674,1709818239625,-7899.56120569,0.00022999,3]
[317471676,1709818239635,-633.94038755,0.00022999,2]
[317471678,1709818239646,-7458.57343395,0.00022999,2]
[317471681,1709818239656,-867.60034229,0.00022999,2]
[317471683,1709818239682,-270.48803571,0.00022999,2]
[317471684,1709818239709,-160.0,0.00022999,2]
[317471686,1709818239719,-160.0,0.00022999,2]
[317471688,1709818239728,-160.0,0.00022999,2]
[317471690,1709818239738,-160.0,0.00022999,2]
[317471693,1709818239748,-2829134.97323621,0.00023,6]
[317471694,1709818239757,-3623.02,0.00023,2]
[317471696,1709818239767,-784.55,0.00023,2]
[317471698,1709818239776,-184.20532805,0.00023,2]
[317471701,1709818239786,-12500.0,0.00023,2]
[317471702,1709818239795,-5030.79,0.00023,2]
[317471705,1709818239805,-12500.0,0.00023,2]
[317471706,1709818239814,-10995.7,0.00023,2]
[317471708,1709818239824,-159.8524535,0.00023,2]
[317471710,1709818239834,-285.56471753,0.00023,2]
[317471712,1709818239843,-1273.97941087,0.00023,2]
[317471714,1709818239852,-300.0,0.00023,10]
[317471716,1709818239862,-9534.86,0.00023,2]
[317471718,1709818239871,-5465.11,0.00023,2]
[317471719,1709818239879,-3564.01,0.00023,2]
[317471721,1709818239888,-224.37984606,0.00023,2]
[317471723,1709818239897,-174.0,0.00023,2]
[317471725,1709818239906,-175.5,0.00023,2]
[317471727,1709818239915,-175.5,0.00023,2]
[317471729,1709818239924,-6032.35,0.00023,10]
[317471731,1709818239933,-500.0,0.00023,2]
[317471733,1709818239942,-581.0,0.00023,2]
[317471735,1709818239951,-164.0,0.00023014,2]
[317471737,1709818239960,-172.880324,0.00023054,2]
[317471739,1709818239969,-172.880325,0.00023054,2]
[317471741,1709818239978,-205.863416,0.00023054,2]
[317471743,1709818239987,-205.863416,0.00023054,2]
[317471745,1709818239996,-172.880325,0.00023054,2]
[317471746,1709818240005,-167.264026,0.00023054,2]
[317471748,1709818240015,-1500.0,0.00023054,2]
[317471750,1709818240025,-1367.18380105,0.00023106,2]
[317471752,1709818240035,-1500.0,0.00023109,2]
[317471754,1709818240044,-1500.0,0.00023165,2]
[317471757,1709818240054,-864.401622,0.00023203,2]
[317471758,1709818240063,-1286.64635,0.00023203,2]
[317471760,1709818240072,-514.65854,0.00023203,2]
[317471762,1709818240082,-345.760649,0.00023203,2]
[317471764,1709818240091,-172.880324,0.00023203,2]
[317471766,1709818240101,-257.32927,0.00023203,2]
[317471768,1709818240110,-257.32927,0.00023203,2]
[317471770,1709818240120,-154.397562,0.00023203,2]
[317471772,1709818240129,-1000.0,0.00023204,7]
[317471774,1709818240138,-1000.0,0.00023204,7]
[317471776,1709818240147,-1000.0,0.00023204,7]
[317471778,1709818240156,-1000.0,0.00023204,7]
[317471780,1709818240166,-1500.0,0.0002322,2]
[317471782,1709818240175,-1000.0,0.00023224,7]
[317471784,1709818240183,-1000.0,0.00023224,7]
[317471786,1709818240192,-1000.0,0.00023241,7]
[317471788,1709818240201,-1000.0,0.00023241,7]
[317471790,1709818240210,-1000.0,0.00023241,7]
[317471792,1709818240219,-1000.0,0.00023241,7]
[317471794,1709818240228,-1000.0,0.00023241,7]
[317471796,1709818240236,-1000.0,0.00023241,7]
[317471798,1709818240245,-1000.0,0.00023241,7]
[317471800,1709818240254,-1000.0,0.00023241,7]
[317471802,1709818240263,-1000.0,0.00023241,7]
[317471804,1709818240272,-1000.0,0.00023241,7]
[317471806,1709818240281,-1000.0,0.00023241,7]
[317471808,1709818240290,-1000.0,0.00023241,7]
[317471810,1709818240299,-1000.0,0.00023241,7]
[317471812,1709818240311,-1000.0,0.00023241,7]
[317471814,1709818240319,-1000.0,0.00023241,7]
[317471816,1709818240328,-1000.0,0.00023241,7]
[317471818,1709818240337,-1000.0,0.00023241,7]
[317471827,1709818240346,-1000.0,0.00023241,7]
[317471829,1709818240425,-1000.0,0.00023241,7]
[317471831,1709818240434,-1000.0,0.00023241,7]
[317471833,1709818240443,-1000.0,0.00023241,7]
[317471835,1709818240453,-1000.0,0.00023241,7]
[317471837,1709818240462,-1000.0,0.00023241,7]
[317471839,1709818240473,-1000.0,0.00023241,7]
[317471841,1709818240483,-1000.0,0.00023241,7]
[317471843,1709818240492,-1000.0,0.00023241,7]
[317471845,1709818240501,-1000.0,0.00023241,7]
[317471847,1709818240511,-1000.0,0.00023241,7]
[317471849,1709818240522,-1000.0,0.00023241,7]
[317471851,1709818240532,-1000.0,0.00023241,7]
[317471853,1709818240541,-1000.0,0.00023241,7]
[317471855,1709818240550,-1000.0,0.00023241,7]
[317471857,1709818240562,-1000.0,0.00023241,7]
[317471859,1709818240571,-1000.0,0.00023241,7]
[317471860,1709818240581,-1000.0,0.00023241,7]
[317471862,1709818240590,-1000.0,0.00023241,7]
[317471864,1709818240599,-1000.0,0.00023241,7]
[317471866,1709818240608,-1000.0,0.00023241,7]
[317471868,1709818240617,-1000.0,0.00023247,7]
[317471870,1709818240626,-1000.0,0.00023247,7]
[317471872,1709818240636,-1000.0,0.00023247,7]
[317471874,1709818240646,-1000.0,0.00023247,7]
[317471876,1709818240655,-1500.0,0.00023275,2]
[317471878,1709818240664,-500.0,0.00023287,2]
[317471880,1709818240673,-1367.18380105,0.00023313,2]
[317471882,1709818240683,-1500.0,0.0002333,2]
[317471884,1709818240692,-500.0,0.00023342,2]
[317471886,1709818240703,-1500.0,0.00023385,2]
[317471888,1709818240712,-500.0,0.00023397,2]
[317471890,1709818240721,-1500.0,0.00023441,2]
[317471892,1709818240730,-500.0,0.00023452,2]
[317471894,1709818240739,-172.880325,0.00023483,2]
[317471896,1709818240749,-172.880324,0.00023483,2]
[317471898,1709818240758,-172.880325,0.00023483,2]
[317471900,1709818240767,-864.401622,0.00023483,2]
[317471902,1709818240776,-1286.64635,0.00023483,2]
[317471904,1709818240786,-514.65854,0.00023483,2]
[317471906,1709818240795,-345.760649,0.00023483,2]
[317471908,1709818240804,-172.880324,0.00023483,2]
[317471910,1709818240813,-257.32927,0.00023483,2]
[317471911,1709818240822,-257.32927,0.00023483,2]
[317471912,1709818240832,-154.397562,0.00023483,2]
[317471913,1709818240841,-1500.0,0.00023496,2]
[317471914,1709818240850,-500.0,0.00023506,2]
[317471915,1709818240859,-1367.18380105,0.00023519,2]
[317471916,1709818240868,-1500.0,0.00023551,2]
[317471917,1709818240878,-500.0,0.00023561,2]
[317471918,1709818240887,-1500.0,0.00023606,2]
[317471919,1709818240896,-500.0,0.00023616,2]
[317471920,1709818240906,-1500.0,0.00023661,2]
[317471921,1709818240915,-500.0,0.00023671,2]
[317471922,1709818240924,-1500.0,0.00023716,2]
[317471923,1709818240933,-1367.18380105,0.00023726,2]
[317471924,1709818240943,-500.0,0.00023726,2]
[317471925,1709818240952,-1500.0,0.00023772,2]
[317471926,1709818240962,-500.0,0.0002378,2]
[317471927,1709818240971,-11011.39780918,0.000238,14]
[317471928,1709818240980,-1500.0,0.00023827,2]
[317471929,1709818240989,-500.0,0.00023835,2]
[317471930,1709818240999,-620.10895732,0.00023863,2]
[317471931,1709818241008,-1500.0,0.00023882,2]
[317471932,1709818241017,-500.0,0.0002389,2]
[317471933,1709818241026,-1367.18380105,0.00023932,2]
[317471934,1709818241035,-1500.0,0.00023937,2]
[317471935,1709818241044,-511.94362706,0.00023945,2]
[317471936,1709818241053,-1500.0,0.00023992,2]
[317471937,1709818241063,-208.83797519,0.00024,2]
[317471938,1709818241072,-1539.80622913,0.00024,2]
[317471939,1709818241081,-20000.0,0.00024,2]
[317471940,1709818241090,-2000.0,0.00024,2]
[317471941,1709818241099,-1587.12688018,0.00024,2]
[317471942,1709818241108,-5275.21605912,0.00024,2]
[317471944,1709818241117,-10000.0,0.00024,2]
[317471946,1709818241126,-15208.95607937,0.00024,2]
[317471948,1709818241135,-2000.0,0.0002401,2]
[317471950,1709818241144,-2000.0,0.0002402,2]
[317471952,1709818241153,-2000.0,0.0002403,2]
[317471954,1709818241162,-2000.0,0.0002404,2]
[317471956,1709818241171,-1500.0,0.00024048,2]
[317471958,1709818241180,-2000.0,0.0002405,2]
[317471960,1709818241189,-2000.0,0.0002406,2]
[317471962,1709818241198,-2000.0,0.0002407,2]
[317471964,1709818241207,-2000.0,0.0002408,2]
[317471966,1709818241216,-2000.0,0.0002409,2]
[317471968,1709818241226,-2000.0,0.000241,2]
[317471970,1709818241235,-1500.0,0.00024103,2]
[317471972,1709818241244,-2000.0,0.0002411,2]
[317471974,1709818241253,-2000.0,0.0002412,2]
[317471976,1709818241262,-2000.0,0.0002413,2]
[317471978,1709818241271,-1367.18380105,0.00024139,2]
[317471980,1709818241280,-2000.0,0.0002414,2]
[317471982,1709818241289,-2000.0,0.0002415,2]
[317471984,1709818241298,-1500.0,0.00024158,2]
[317471986,1709818241308,-2000.0,0.0002416,2]
[317471988,1709818241317,-166.0,0.00024164,2]
[317471990,1709818241326,-2000.0,0.0002417,2]
[317471992,1709818241336,-2000.0,0.0002418,2]
[317471994,1709818241345,-2943.708138,0.0002419,2]
[317471996,1709818241354,-1500.0,0.00024213,2]
[317471998,1709818241363,-2469.888006,0.00024268,2]
[317472000,1709818241372,-1367.18380105,0.00024345,2]
[317472002,1709818241380,-5000.0,0.00024386,7]
[317472004,1709818241390,-300.0,0.000245,11]
[317472006,1709818241399,-502.06222346,0.00024541,2]
[317472008,1709818241408,-1367.18380105,0.00024552,2]
[317472010,1709818241416,-500.0,0.000246,2]
[317472012,1709818241425,-500.0,0.000246,2]
[317472014,1709818241434,-545.93,0.000246,2]
[317472015,1709818241443,-1391.2056662,0.00024656,2]
[317472017,1709818241452,-160.0,0.00024656,2]
[317472019,1709818241462,-160.0,0.00024656,2]
[317472021,1709818241472,-160.0,0.00024656,2]
[317472023,1709818241480,-463.5745322,0.00024657,2]
[317472025,1709818241490,-500.0,0.00024657,2]
[317472027,1709818241500,-500.0,0.00024657,2]
[317472029,1709818241509,-500.0,0.00024657,2]
[317472031,1709818241518,-585.03189378,0.00024657,2]
[317472033,1709818241527,-500.0,0.00024657,2]
[317472035,1709818241537,-500.0,0.00024657,2]
[317472037,1709818241546,-500.0,0.00024657,2]
[317472039,1709818241555,-500.0,0.00024657,2]
[317472041,1709818241565,-500.0,0.00024657,2]
[317472043,1709818241573,-500.0,0.00024657,2]
[317472045,1709818241583,-500.0,0.00024657,2]
[317472047,1709818241592,-500.0,0.00024657,2]
[317472049,1709818241601,-500.0,0.00024657,2]
[317472051,1709818241610,-500.0,0.00024657,2]
[317472053,1709818241619,-500.0,0.00024657,2]
[317472055,1709818241628,-500.0,0.00024657,2]
[317472057,1709818241637,-500.0,0.00024657,2]
[317472059,1709818241646,-500.0,0.00024657,2]
[317472061,1709818241655,-500.0,0.00024657,2]
[317472063,1709818241665,-500.0,0.00024657,2]
[317472065,1709818241675,-500.0,0.00024657,2]
[317472067,1709818241684,-500.0,0.00024657,2]
[317472069,1709818241693,-500.0,0.00024657,2]
[317472071,1709818241702,-500.0,0.00024657,2]
[317472073,1709818241711,-500.67366981,0.00024657,2]
[317472075,1709818241720,-500.0,0.00024657,2]
[317472077,1709818241729,-505.03690314,0.00024657,2]
[317472079,1709818241738,-500.0,0.00024657,2]
[317472081,1709818241747,-500.0,0.00024657,2]
[317472083,1709818241756,-500.0,0.00024657,2]
[317472085,1709818241765,-500.0,0.00024657,2]
[317472093,1709818241837,-500.0,0.00024657,2]
[317472095,1709818241847,-500.0,0.00024657,2]
[317472097,1709818241856,-500.0,0.00024657,2]
[317472099,1709818241865,-500.0,0.00024657,2]
[317472101,1709818241875,-500.0,0.00024657,2]
[317472103,1709818241884,-500.0,0.00024657,2]
[317472105,1709818241893,-500.0,0.00024657,2]
[317472107,1709818241902,-501.77204875,0.00024657,2]
[317472109,1709818241911,-500.0,0.00024657,2]
[317472111,1709818241920,-500.0,0.00024657,2]
[317472113,1709818241929,-500.0,0.00024657,2]
[317472115,1709818241939,-500.0,0.00024657,2]
[317472117,1709818241948,-500.0,0.00024657,2]
[317472119,1709818241957,-160.46745028,0.00024657,2]
[317472121,1709818241967,-534.47743289,0.00024657,2]
[317472123,1709818241977,-500.0,0.00024657,2]
[317472125,1709818241986,-500.0,0.00024657,2]
[317472126,1709818241995,-500.0,0.00024657,2]
[317472127,1709818242004,-500.0,0.00024657,2]
[317472128,1709818242013,-500.0,0.00024657,2]
[317472129,1709818242022,-305.28,0.00024657,2]
[317472130,1709818242031,-500.0,0.00024657,2]
[317472131,1709818242041,-500.0,0.00024657,2]
[317472133,1709818242050,-500.0,0.00024657,2]
[317472135,1709818242060,-454.99538054,0.00024657,2]
[317472137,1709818242070,-500.0,0.00024657,2]
[317472139,1709818242080,-500.0,0.00024657,2]
[317472141,1709818242089,-500.0,0.00024657,2]
[317472142,1709818242098,-500.0,0.00024657,2]
[317472144,1709818242107,-500.0,0.00024657,2]
[317472146,1709818242117,-500.0,0.00024657,2]
[317472149,1709818242126,-500.0,0.00024657,2]
[317472151,1709818242136,-500.0,0.00024657,2]
[317472152,1709818242145,-500.0,0.00024657,2]
[317472154,1709818242155,-500.0,0.00024657,2]
[317472157,1709818242164,-500.0,0.00024657,2]
[317472158,1709818242173,-500.0,0.00024657,2]
[317472161,1709818242183,-500.0,0.00024657,2]
[317472163,1709818242192,-500.0,0.00024657,2]
[317472165,1709818242201,-500.0,0.00024657,2]
[317472168,1709818242211,-500.0,0.00024657,2]
[317472170,1709818242220,-500.0,0.00024657,2]
[317472172,1709818242229,-500.0,0.00024657,2]
[317472174,1709818242238,-509.10983188,0.00024657,2]
[317472176,1709818242247,-358.09678446,0.00024657,2]
[317472178,1709818242256,-500.0,0.00024657,2]
[317472180,1709818242266,-586.66774728,0.00024657,2]
[317472182,1709818242275,-549.67,0.00024657,2]
[317472186,1709818242284,-549.67,0.00024657,2]
[317472188,1709818242293,-549.67,0.00024657,2]
[317472190,1709818242302,-549.67,0.00024657,2]
[317472192,1709818242312,-549.67,0.00024657,2]
[317472194,1709818242321,-549.67,0.00024657,2]
[317472195,1709818242330,-500.0,0.00024657,2]
[317472197,1709818242339,-549.67,0.00024657,2]
[317472199,1709818242348,-500.0,0.00024657,2]
[317472201,1709818242357,-549.67,0.00024657,2]
[317472203,1709818242366,-500.0,0.00024657,2]
[317472205,1709818242375,-549.67,0.00024657,2]
[317472207,1709818242384,-549.67,0.00024657,2]
[317472209,1709818242393,-484.53239323,0.00024657,2]
[317472211,1709818242402,-549.67,0.00024657,2]
[317472214,1709818242411,-549.67,0.00024657,2]
[317472216,1709818242421,-549.67,0.00024657,2]
[317472218,1709818242430,-549.67,0.00024657,2]
[317472220,1709818242439,-549.67,0.00024657,2]
[317472222,1709818242449,-549.67,0.00024657,2]
[317472224,1709818242458,-549.67,0.00024657,2]
[317472226,1709818242468,-549.67,0.00024657,2]
[317472227,1709818242477,-549.67,0.00024657,2]
[317472229,1709818242488,-549.67,0.00024657,2]
[317472232,1709818242498,-549.67,0.00024657,2]
[317472234,1709818242508,-549.67,0.00024657,2]
[317472235,1709818242519,-549.67,0.00024657,2]
[317472237,1709818242529,-549.76539918,0.00024657,2]
[317472239,1709818242538,-500.0,0.00024657,2]
[317472241,1709818242548,-500.0,0.00024657,2]
[317472243,1709818242558,-500.0,0.00024657,2]
[317472245,1709818242568,-500.0,0.00024657,2]
[317472248,1709818242578,-500.0,0.00024657,2]
[317472249,1709818242587,-500.0,0.00024657,2]
[317472251,1709818242596,-507.42910213,0.00024657,2]
[317472254,1709818242606,-500.0,0.00024657,2]
[317472255,1709818242615,-161.10084095,0.00024657,2]
[317472258,1709818242624,-532.88,0.00024657,2]
[317472260,1709818242634,-532.88,0.00024657,2]
[317472261,1709818242644,-532.88,0.00024657,2]
[317472264,1709818242654,-532.88,0.00024657,2]
[317472266,1709818242663,-532.88,0.00024657,2]
[317472268,1709818242673,-532.88,0.00024657,2]
[317472271,1709818242683,-532.88,0.00024657,2]
[317472274,1709818242692,-532.88,0.00024657,2]
[317472277,1709818242701,-532.88,0.00024657,2]
[317472280,1709818242710,-532.88,0.00024657,2]
[317472282,1709818242720,-532.88,0.00024657,2]
[317472284,1709818242728,-532.88,0.00024657,2]
[317472286,1709818242737,-532.88,0.00024657,2]
[317472288,1709818242746,-532.88,0.00024657,2]
[317472290,1709818242755,-532.88,0.00024657,2]
[317472291,1709818242764,-532.88,0.00024657,2]
[317472293,1709818242774,-532.88,0.00024657,2]
[317472295,1709818242783,-532.88,0.00024657,2]
[317472297,1709818242792,-532.88,0.00024657,2]
[317472300,1709818242803,-532.88,0.00024657,2]
[317472302,1709818242813,-532.88,0.00024657,2]
[317472304,1709818242822,-532.88,0.00024657,2]
[317472306,1709818242831,-532.88,0.00024657,2]
[317472308,1709818242840,-532.97451332,0.00024657,2]
[317472309,1709818242849,-582.80230807,0.00024657,2]
[317472310,1709818242858,-617.28125739,0.00024657,2]
[317472311,1709818242867,-198.10158122,0.00024657,2]
[317472312,1709818242877,-500.0,0.00024657,2]
[317472313,1709818242886,-500.0,0.00024657,2]
[317472314,1709818242895,-500.0,0.00024657,2]
[317472315,1709818242904,-409.71967047,0.00024657,2]
[317472316,1709818242913,-500.0,0.00024657,2]
[317472317,1709818242922,-500.0,0.00024657,2]
[317472319,1709818242931,-500.0,0.00024657,2]
[317472321,1709818242942,-500.0,0.00024657,2]
[317472323,1709818242951,-500.0,0.00024657,2]
[317472325,1709818242960,-500.0,0.00024657,2]
[317472327,1709818242969,-647.47,0.00024657,2]
[317472329,1709818242979,-647.47,0.00024657,2]
[317472331,1709818242988,-500.0,0.00024657,2]
[317472333,1709818242997,-500.0,0.00024657,2]
[317472335,1709818243006,-647.47,0.00024657,2]
[317472337,1709818243016,-647.47,0.00024657,2]
[317472339,1709818243025,-155.29170758,0.00024657,2]
[317472341,1709818243034,-647.47,0.00024657,2]
[317472343,1709818243043,-647.47,0.00024657,2]
[317472345,1709818243052,-647.47,0.00024657,2]
[317472347,1709818243061,-647.47,0.00024657,2]
[317472349,1709818243070,-500.0,0.00024657,2]
[317472351,1709818243079,-647.47,0.00024657,2]
[317472353,1709818243089,-500.0,0.00024657,2]
[317472355,1709818243098,-647.47,0.00024657,2]
[317472363,1709818243172,-500.0,0.00024657,2]
[317472365,1709818243182,-647.47,0.00024657,2]
[317472367,1709818243193,-500.0,0.00024657,2]
[317472369,1709818243202,-647.47,0.00024657,2]
[317472371,1709818243211,-500.0,0.00024657,2]
[317472373,1709818243222,-647.47,0.00024657,2]
[317472375,1709818243232,-647.47,0.00024657,2]
[317472377,1709818243243,-500.0,0.00024657,2]
[317472379,1709818243256,-647.47,0.00024657,2]
[317472381,1709818243266,-500.0,0.00024657,2]
[317472383,1709818243276,-647.47,0.00024657,2]
[317472385,1709818243285,-461.89504177,0.00024657,2]
[317472387,1709818243294,-647.47,0.00024657,2]
[317472389,1709818243305,-647.47,0.00024657,2]
[317472391,1709818243314,-647.47,0.00024657,2]
[317472393,1709818243323,-647.47,0.00024657,2]
[317472395,1709818243332,-647.47,0.00024657,2]
[317472397,1709818243341,-647.47,0.00024657,2]
[317472399,1709818243350,-647.47,0.00024657,2]
[317472401,1709818243359,-647.5312073,0.00024657,2]
[317472403,1709818243368,-500.0,0.00024657,2]
[317472404,1709818243377,-500.0,0.00024657,2]
[317472406,1709818243387,-500.0,0.00024657,2]
[317472409,1709818243396,-500.0,0.00024657,2]
[317472411,1709818243405,-500.0,0.00024657,2]
[317472413,1709818243414,-500.0,0.00024657,2]
[317472414,1709818243423,-500.0,0.00024657,2]
[317472416,1709818243432,-212.04999717,0.00024657,2]
[317472418,1709818243441,-500.0,0.00024657,2]
[317472420,1709818243450,-500.0,0.00024657,2]
[317472422,1709818243459,-500.0,0.00024657,2]
[317472424,1709818243468,-500.0,0.00024657,2]
[317472426,1709818243481,-500.0,0.00024657,2]
[317472428,1709818243490,-500.0,0.00024657,2]
[317472430,1709818243499,-500.0,0.00024657,2]
[317472432,1709818243508,-500.0,0.00024657,2]
[317472434,1709818243518,-307.97732921,0.00024657,2]
[317472436,1709818243527,-500.0,0.00024657,2]
[317472438,1709818243536,-500.0,0.00024657,2]
[317472440,1709818243545,-500.0,0.00024657,2]
[317472442,1709818243555,-500.0,0.00024657,2]
[317472444,1709818243566,-500.0,0.00024657,2]
[317472446,1709818243574,-500.0,0.00024657,2]
[317472448,1709818243583,-500.0,0.00024657,2]
[317472450,1709818243592,-500.0,0.00024657,2]
[317472452,1709818243601,-500.0,0.00024657,2]
[317472454,1709818243610,-500.0,0.00024657,2]
[317472456,1709818243619,-500.0,0.00024657,2]
[317472458,1709818243628,-640.18258231,0.00024657,2]
[317472460,1709818243637,-578.50175243,0.00024657,2]
[317472462,1709818243647,-500.0,0.00024657,2]
[317472464,1709818243656,-500.0,0.00024657,2]
[317472467,1709818243665,-500.0,0.00024657,2]
[317472468,1709818243675,-500.0,0.00024657,2]
[317472471,1709818243684,-500.0,0.00024657,2]
[317472473,1709818243693,-212.79547611,0.00024657,2]
[317472475,1709818243702,-220.68206687,0.00024657,2]
[317472477,1709818243712,-500.0,0.00024657,2]
[317472479,1709818243721,-500.0,0.00024657,2]
[317472481,1709818243730,-500.0,0.00024657,2]
[317472483,1709818243740,-500.0,0.00024657,2]
[317472485,1709818243749,-500.0,0.00024657,2]
[317472486,1709818243758,-500.0,0.00024657,2]
[317472488,1709818243767,-500.0,0.00024657,2]
[317472490,1709818243776,-500.0,0.00024657,2]
[317472492,1709818243785,-213.35697259,0.00024657,2]
[317472495,1709818243795,-586.37557189,0.00024657,2]
[317472496,1709818243806,-452.73865278,0.00024657,2]
[317472498,1709818243815,-500.0,0.00024657,2]
[317472500,1709818243824,-500.0,0.00024657,2]
[317472501,1709818243833,-500.0,0.00024657,2]
[317472502,1709818243842,-500.0,0.00024657,2]
[317472503,1709818243851,-500.0,0.00024657,2]
[317472504,1709818243861,-500.0,0.00024657,2]
[317472505,1709818243870,-500.0,0.00024657,2]
[317472506,1709818243879,-500.0,0.00024657,2]
[317472507,1709818243888,-500.0,0.00024657,2]
[317472508,1709818243897,-500.0,0.00024657,2]
[317472509,1709818243906,-500.0,0.00024657,2]
[317472510,1709818243915,-500.0,0.00024657,2]
[317472511,1709818243924,-500.0,0.00024657,2]
[317472512,1709818243933,-500.0,0.00024657,2]
[317472513,1709818243943,-500.0,0.00024657,2]
[317472514,1709818243953,-500.0,0.00024657,2]
[317472515,1709818243963,-500.0,0.00024657,2]
[317472516,1709818243972,-500.0,0.00024657,2]
[317472517,1709818243981,-383.11110571,0.00024657,2]
[317472518,1709818243990,-500.0,0.00024657,2]
[317472519,1709818244000,-500.0,0.00024657,2]
[317472520,1709818244009,-504.57588242,0.00024657,2]
[317472521,1709818244019,-351.02192997,0.00024657,2]
[317472522,1709818244028,-204.9,0.00024657,2]
[317472523,1709818244038,-204.9,0.00024657,2]
[317472524,1709818244047,-204.9,0.00024657,2]
[317472525,1709818244058,-204.9,0.00024657,2]
[317472526,1709818244067,-500.0,0.00024657,2]
[317472527,1709818244076,-500.0,0.00024657,2]
[317472528,1709818244086,-369.18796959,0.00024657,2]
[317472529,1709818244095,-500.0,0.00024657,2]
[317472530,1709818244104,-500.0,0.00024657,2]
[317472531,1709818244114,-500.0,0.00024657,2]
[317472532,1709818244123,-500.0,0.00024657,2]
[317472533,1709818244133,-500.0,0.00024657,2]
[317472535,1709818244142,-502.12325724,0.00024657,2]
[317472537,1709818244152,-500.0,0.00024657,2]
[317472539,1709818244161,-500.0,0.00024657,2]
[317472541,1709818244170,-500.0,0.00024657,2]
[317472543,1709818244180,-500.0,0.00024657,2]
[317472545,1709818244189,-204.9,0.00024657,2]
[317472547,1709818244199,-500.0,0.00024657,2]
[317472549,1709818244208,-204.9,0.00024657,2]
[317472551,1709818244218,-500.0,0.00024657,2]